bitfinex/quotes_BTCUSD_20240820
["timestamp","ask_amount","ask_price","bid_price","bid_amount"]
[1724171552378,1.47819471,59185.0,59184.0,0.45582361]
[1724171552379,1.57969586,59185.0,59184.0,0.45582361]
[1724171552833,1.57969586,59185.0,59184.0,0.4143031]
[1724171553294,1.52162096,59185.0,59184.0,0.4143031]
[1724171553505,1.55430476,59185.0,59184.0,0.4143031]
[1724171553747,1.55430476,59185.0,59184.0,0.4163031]
[1724171554591,1.4781838,59185.0,59184.0,0.4163031]
[1724171554790,1.4781838,59185.0,59184.0,0.0029031]
[1724171555019,1.76077936,59185.0,59184.0,0.0049031]
[1724171555208,1.6592838,59185.0,59184.0,0.0049031]
[1724171555409,1.78616384,59185.0,59184.0,0.0049031]
[1724171555627,1.6592838,59185.0,59184.0,0.0049031]
[1724171556260,1.78616124,59185.0,59184.0,0.0049031]
[1724171556473,1.78616522,59185.0,59184.0,0.0049031]
[1724171557302,1.76078625,59185.0,59184.0,0.0049031]
[1724171557523,1.78616522,59185.0,59184.0,0.0049031]
[1724171558084,1.78616086,59185.0,59184.0,0.0049031]
[1724171558307,1.6592838,59185.0,59184.0,0.0049031]
[1724171558509,1.7605815,59185.0,59184.0,0.0049031]
[1724171558717,1.65908045,59185.0,59184.0,0.0049031]
[1724171559326,1.76058088,59185.0,59184.0,0.0049031]
[1724171559732,1.65908045,59185.0,59184.0,0.0049031]
[1724171559977,1.76057979,59185.0,59184.0,0.0049031]
[1724171560791,1.65908045,59185.0,59184.0,0.0049031]
[1724171561034,1.76058058,59185.0,59184.0,0.0049031]
[1724171562902,1.5794823,59185.0,59184.0,0.0049031]
[1724171563171,1.60485751,59185.0,59184.0,0.3869031]
[1724171563372,1.47798045,59185.0,59184.0,0.3869031]
[1724171563929,1.57948398,59185.0,59184.0,0.3869031]
[1724171564292,1.47798045,59185.0,59184.0,0.0049031]
[1724171564609,1.57948529,59185.0,59184.0,0.0049031]
[1724171564810,1.60485751,59185.0,59184.0,0.0049031]
[1724171565013,1.57948485,59185.0,59184.0,0.0049031]
[1724171566821,1.47798045,59185.0,59184.0,0.0049031]
[1724171567037,1.57948485,59185.0,59184.0,0.0049031]
[1724171567604,1.47798045,59185.0,59184.0,0.0049031]
[1724171568416,1.60486718,59185.0,59184.0,0.0049031]
[1724171568763,1.47798045,59185.0,59184.0,0.0049031]
[1724171570277,2.03758045,59185.0,59184.0,0.0049031]
[1724171571088,1.65818045,59185.0,59184.0,0.0049031]
[1724171571296,1.65818045,59185.0,59184.0,0.3904031]
[1724171571514,1.65818045,59185.0,59184.0,0.0049031]
[1724171571706,2.04058045,59185.0,59184.0,0.0049031]
[1724171571909,2.17774945,59185.0,59184.0,0.0049031]
[1724171572235,2.46577158,59185.0,59184.0,0.0049031]
[1724171572576,2.46577158,59185.0,59184.0,0.0029031]
[1724171572783,2.46577158,59185.0,59184.0,0.0009031]
[1724171574440,2.74670737,59185.0,59184.0,0.0009031]
[1724171574846,2.74670737,59185.0,59183.0,0.000902]
[1724171574847,0.410514,59184.0,59183.0,0.000902]
[1724171575045,4.0744408,59184.0,59183.0,0.000902]
[1724171575267,4.3447838,59184.0,59183.0,0.000902]
[1724171575662,4.3447838,59184.0,59160.0,0.49229154]
[1724171575663,0.2,59161.0,59160.0,0.49229154]
[1724171575865,0.43100487,59161.0,59160.0,0.49229154]
[1724171576019,0.43100487,59161.0,59159.0,0.000902]
[1724171576221,0.05493079,59160.0,59159.0,0.000902]
[1724171576424,0.00422592,59160.0,59159.0,0.000902]
[1724171577040,1.10428648,59160.0,59159.0,0.000902]
[1724171577239,1.10428648,59160.0,59159.0,0.005902]
[1724171577240,1.03565707,59160.0,59159.0,0.005902]
[1724171577447,1.03565707,59160.0,59159.0,0.006902]
[1724171577448,1.1369621,59160.0,59159.0,0.006902]
[1724171577917,1.1399621,59160.0,59159.0,0.001902]
[1724171578126,1.03865707,59160.0,59159.0,0.001902]
[1724171578329,1.93417691,59160.0,59159.0,0.001902]
[1724171578524,2.05458907,59160.0,59159.0,0.001902]
[1724171578759,0.2,59140.0,59139.0,0.49229154]
[1724171578968,0.3922,59140.0,59139.0,0.49229154]
[1724171579164,0.3922,59140.0,59133.0,0.068716]
[1724171579165,0.63,59134.0,59133.0,0.000902]
[1724171579383,1.2233,59134.0,59133.0,0.000902]
[1724171579580,1.67802036,59134.0,59133.0,0.000902]
[1724171579813,1.70333136,59134.0,59133.0,0.000902]
[1724171580215,1.61987174,59134.0,59133.0,0.000902]
[1724171580836,1.61986816,59134.0,59133.0,0.000902]
[1724171580986,1.58986816,59134.0,59133.0,0.000902]
[1724171581213,0.7922,59134.0,59133.0,0.000902]
[1724171582870,0.8222,59134.0,59133.0,0.000902]
[1724171584846,1.2358,59134.0,59133.0,0.000902]
[1724171585005,1.2328,59134.0,59133.0,0.000902]
[1724171587284,0.8222,59134.0,59133.0,0.000902]
[1724171588222,0.7922,59134.0,59133.0,0.000902]
[1724171588590,0.6,59134.0,59133.0,0.000902]
[1724171590086,0.63,59134.0,59133.0,0.000902]
[1724171590276,1.2019,59134.0,59133.0,0.000902]
[1724171590471,1.2029,59134.0,59133.0,0.000902]
[1724171590754,1.2019,59134.0,59133.0,0.000902]
[1724171591424,0.8217,59134.0,59133.0,0.000902]
[1724171594323,0.63,59134.0,59133.0,0.000902]
[1724171595386,0.6,59134.0,59133.0,0.000902]
[1724171595898,0.6,59134.0,59133.0,0.401202]
[1724171596185,0.6,59134.0,59133.0,0.405202]
[1724171596390,0.6,59134.0,59133.0,0.409202]
[1724171597460,0.2,59134.0,59133.0,0.409202]
[1724171598376,0.7954,59134.0,59133.0,0.008902]
[1724171599706,0.7954,59134.0,59133.0,0.000902]
[1724171603664,0.6,59134.0,59133.0,0.378202]
[1724171604449,0.2,59134.0,59133.0,0.378202]
[1724171605239,0.6,59134.0,59133.0,0.000902]
[1724171605686,0.6,59134.0,59133.0,0.004902]
[1724171605917,0.6,59134.0,59133.0,0.008902]
[1724171606218,0.6,59134.0,59133.0,0.004902]
[1724171606424,0.7853,59134.0,59133.0,0.000902]
[1724171606669,0.7853,59134.0,59133.0,0.004902]
[1724171606867,0.8153,59134.0,59133.0,0.004902]
[1724171607472,0.8153,59134.0,59133.0,0.002902]
[1724171607862,0.8153,59134.0,59133.0,0.000902]
[1724171608067,1.2061,59134.0,59133.0,0.000902]
[1724171608294,1.2091,59134.0,59133.0,0.000902]
[1724171608502,1.24189066,59134.0,59133.0,0.000902]
[1724171611450,1.23889066,59134.0,59133.0,0.000902]
[1724171612075,1.23989066,59134.0,59133.0,0.000902]
[1724171612525,1.23889066,59134.0,59133.0,0.000902]
[1724171616834,1.23989066,59134.0,59133.0,0.000902]
[1724171617062,2.27681766,59134.0,59133.0,0.000902]
[1724171617261,2.27681766,59134.0,59101.0,0.0348431]
[1724171617262,0.7944,59102.0,59101.0,0.0348431]
[1724171617522,0.7944,59102.0,59101.0,0.0009031]
[1724171617647,0.82722585,59102.0,59101.0,0.0009031]
[1724171619470,0.7944,59102.0,59101.0,0.0009031]
[1724171620153,0.7944,59102.0,59101.0,0.4160031]
[1724171620154,0.2,59102.0,59101.0,0.4160031]
[1724171620359,0.4,59108.0,59101.0,0.4160031]
[1724171620360,0.2,59108.0,59101.0,0.4160031]
[1724171620733,0.2,59108.0,59103.0,0.4151]
[1724171620934,0.2,59108.0,59102.0,0.1]
[1724171620935,0.2,59108.0,59105.0,0.3776]
[1724171621133,0.2,59108.0,59106.0,0.1]
[1724171621338,0.2,59108.0,59107.0,0.3776]
[1724171621576,0.2,59108.0,59107.0,0.4776]
[1724171622407,0.4,59114.0,59107.0,0.4776]
[1724171622408,0.2,59114.0,59108.0,0.4155]
[1724171622613,0.2,59114.0,59110.0,0.4155]
[1724171623465,0.2,59114.0,59112.0,0.4155]
[1724171623666,0.2,59114.0,59113.0,0.1]
[1724171623881,0.2,59114.0,59113.0,0.4155]
[1724171624074,0.2,59114.0,59113.0,0.5155]
[1724171624891,0.2,59114.0,59113.0,0.5215]
[1724171625303,0.6,59120.0,59113.0,0.5215]
[1724171625715,0.6,59120.0,59113.0,0.5285]
[1724171626489,0.1807,59128.0,59116.0,0.3902]
[1724171626490,0.2,59128.0,59116.0,0.3902]
[1724171626687,0.2,59128.0,59123.0,0.5604]
[1724171626892,0.2,59128.0,59124.0,0.1]
[1724171627092,0.2,59134.0,59125.0,0.3858]
[1724171627273,0.2,59134.0,59127.0,0.3858]
[1724171627509,0.2,59134.0,59126.0,0.023]
[1724171627510,0.2,59134.0,59129.0,0.3858]
[1724171629479,0.2,59134.0,59131.0,0.3918]
[1724171629810,0.2,59134.0,59131.0,0.3988]
[1724171630394,0.2,59134.0,59133.0,0.3858]
[1724171630604,0.2,59134.0,59133.0,0.4858]
[1724171632258,0.2,59134.0,59133.0,0.4988]
[1724171632607,0.2,59134.0,59133.0,0.5128]
[1724171636269,0.200821,59134.0,59133.0,0.5128]
[1724171639370,0.000821,59134.0,59133.0,0.5940159]
[1724171639579,0.000821,59134.0,59133.0,0.6170159]
[1724171640214,0.000821,59134.0,59133.0,0.5358]
[1724171641201,0.000821,59134.0,59133.0,0.5128]
[1724171641471,0.000821,59134.0,59133.0,0.027]
[1724171641669,0.226021,59134.0,59133.0,0.027]
[1724171642678,0.226021,59134.0,59133.0,0.013]
[1724171642875,0.226021,59134.0,59120.0,1.6238]
[1724171642876,0.2,59125.0,59120.0,1.6238]
[1724171643495,0.2,59125.0,59123.0,0.067826]
[1724171643697,0.2,59125.0,59121.0,0.1]
[1724171643862,0.226021,59134.0,59123.0,0.1746]
[1724171643863,0.2,59133.0,59123.0,0.1746]
[1724171644185,0.2,59133.0,59124.0,0.5014]
[1724171645960,0.2,59133.0,59124.0,0.5044]
[1724171646342,0.2,59133.0,59124.0,0.5064]
[1724171649003,0.200821,59133.0,59124.0,0.5064]
[1724171649176,0.200821,59133.0,59125.0,0.3858]
[1724171649377,0.200821,59133.0,59128.0,0.3858]
[1724171649594,0.200821,59133.0,59129.0,0.1]
[1724171649783,0.200821,59133.0,59130.0,0.023]
[1724171650445,0.200821,59133.0,59129.0,0.1]
[1724171651217,0.200821,59133.0,59130.0,0.002]
[1724171652018,0.200821,59133.0,59130.0,0.005]
[1724171652567,0.200821,59133.0,59130.0,0.002]
[1724171652780,0.200821,59133.0,59130.0,0.006]
[1724171652951,0.200821,59133.0,59130.0,0.004]
[1724171654137,0.200821,59133.0,59130.0,0.007]
[1724171656698,0.1936,59131.0,59130.0,0.007]
[1724171658005,0.1936,59131.0,59130.0,0.003]
[1724171658207,0.1936,59131.0,59121.0,0.468228]
[1724171658208,0.2,59124.0,59121.0,0.468228]
[1724171658615,0.2,59124.0,59122.0,0.1]
[1724171660831,0.2,59124.0,59122.0,0.112]
[1724171661314,0.2,59124.0,59123.0,0.0009031]
[1724171662655,0.000821,59133.0,59124.0,0.5562]
[1724171662656,0.2,59132.0,59124.0,0.5562]
[1724171662909,0.2,59132.0,59125.0,0.123]
[1724171663136,0.2,59132.0,59126.0,0.3816]
[1724171663389,0.2,59132.0,59127.0,0.1]
[1724171663583,0.000821,59133.0,59128.0,0.3816]
[1724171663792,0.000821,59133.0,59129.0,0.10338189]
[1724171663993,0.000821,59133.0,59130.0,0.44330219]
[1724171664120,0.000821,59133.0,59132.0,0.3567]
[1724171664342,0.000821,59133.0,59132.0,1.06984]
[1724171665177,0.000821,59133.0,59132.0,1.08084]
[1724171665383,0.000821,59133.0,59132.0,1.08484]
[1724171665533,0.000821,59133.0,59132.0,1.19859422]
[1724171665738,0.000821,59133.0,59132.0,1.20059422]
[1724171665977,0.000821,59133.0,59132.0,1.21459422]
[1724171666145,0.000821,59133.0,59132.0,1.20059422]
[1724171666598,0.000821,59133.0,59132.0,1.20359422]
[1724171666798,0.49229154,59149.0,59144.0,0.3806]
[1724171666970,0.49229154,59149.0,59146.0,0.3806]
[1724171667191,0.2,59152.0,59147.0,0.1]
[1724171667346,0.2,59152.0,59148.0,0.023]
[1724171667559,0.000821,59159.0,59149.0,0.3806]
[1724171667773,0.000821,59159.0,59150.0,0.12638091]
[1724171668032,0.000821,59159.0,59158.0,0.3567]
[1724171668227,0.000821,59159.0,59158.0,0.7589]
[1724171668423,0.000821,59159.0,59158.0,0.8589]
[1724171668995,0.000821,59159.0,59158.0,0.89284]
[1724171669191,0.000821,59159.0,59158.0,0.89684]
[1724171669404,0.000821,59159.0,59158.0,0.982524]
[1724171669807,0.000821,59159.0,59158.0,0.996524]
[1724171670041,0.000821,59159.0,59158.0,0.5022]
[1724171670244,0.000821,59159.0,59158.0,0.1]
[1724171670418,0.000821,59159.0,59154.0,0.1]
[1724171671343,0.000821,59159.0,59158.0,0.014]
[1724171671623,0.000821,59159.0,59154.0,0.1]
[1724171671858,0.000821,59159.0,59158.0,0.003]
[1724171672306,0.000821,59159.0,59154.0,0.1694035]
[1724171672598,0.000821,59159.0,59158.0,0.014]
[1724171672815,0.000821,59159.0,59158.0,0.028]
[1724171672978,0.000821,59159.0,59158.0,0.014]
[1724171673750,0.000821,59159.0,59158.0,0.028]
[1724171673997,0.000821,59159.0,59158.0,0.014]
[1724171673998,0.560321,59159.0,59158.0,0.014]
[1724171674408,0.560321,59159.0,59158.0,0.028]
[1724171674817,0.563321,59159.0,59158.0,0.014]
[1724171675260,0.6139428,59159.0,59158.0,0.014]
[1724171675468,0.2,59138.0,59134.0,0.03394]
[1724171675642,0.1832,59137.0,59130.0,0.41114115]
[1724171676002,0.00422759,59136.0,59126.0,0.03394]
[1724171676207,0.00422759,59136.0,59124.0,0.1916]
[1724171676208,0.00422786,59135.0,59125.0,0.4005]
[1724171676641,0.00422786,59135.0,59125.0,0.4110496]
[1724171676813,0.1832,59137.0,59125.0,0.4110496]
[1724171677268,0.1832,59137.0,59133.0,0.01220357]
[1724171677446,0.1832,59137.0,59133.0,0.00020357]
[1724171677848,0.0042279,59136.0,59133.0,0.00020357]
[1724171678048,0.0042279,59136.0,59133.0,0.01020357]
[1724171678901,0.001,59135.0,59133.0,0.01020357]
[1724171679113,0.4045282,59134.0,59133.0,0.01120357]
[1724171679558,0.4045282,59134.0,59133.0,0.02120357]
[1724171679764,0.4003,59134.0,59133.0,0.02120357]
[1724171680163,0.4003,59134.0,59133.0,0.01120357]
[1724171680609,0.4003,59134.0,59133.0,0.01520357]
[1724171681013,0.4003,59134.0,59133.0,0.00420357]
[1724171681431,0.4003,59134.0,59133.0,0.00820357]
[1724171681771,0.4003,59134.0,59133.0,0.00420357]
[1724171681994,0.4003,59134.0,59133.0,0.00920357]
[1724171682746,0.5878,59134.0,59133.0,0.00420357]
[1724171683381,0.5878,59134.0,59133.0,0.00020357]
[1724171684250,0.2,59121.0,59120.0,0.12600185]
[1724171684458,0.2,59121.0,59120.0,0.1]
[1724171685301,0.2,59121.0,59119.0,0.067831]
[1724171685903,0.202,59121.0,59120.0,0.021]
[1724171687345,0.201,59121.0,59120.0,0.008]
[1724171687548,0.202,59121.0,59120.0,0.008]
[1724171688194,0.2,59121.0,59119.0,0.067831]
[1724171688396,0.201,59121.0,59120.0,0.014]
[1724171689028,0.3891,59121.0,59120.0,0.014]
[1724171689239,0.3891,59121.0,59119.0,0.067831]
[1724171689240,0.3881,59121.0,59119.0,0.067831]
[1724171689870,0.3891,59121.0,59119.0,0.075831]
[1724171690256,0.3881,59121.0,59119.0,0.067831]
[1724171690468,0.3891,59121.0,59120.0,0.008]
[1724171690667,0.3901,59121.0,59120.0,0.008]
[1724171690873,0.3891,59121.0,59119.0,0.081831]
[1724171691072,0.3891,59121.0,59119.0,0.089831]
[1724171691270,0.202,59121.0,59119.0,0.089831]
[1724171691592,0.2,59121.0,59119.0,0.067831]
[1724171691974,0.201,59121.0,59120.0,0.014]
[1724171692356,0.2,59121.0,59119.0,0.067831]
[1724171692953,0.201,59121.0,59120.0,0.008]
[1724171693341,0.2,59121.0,59119.0,0.067831]
[1724171693760,0.201,59121.0,59120.0,0.4099]
[1724171693962,0.202,59121.0,59120.0,0.5099]
[1724171694212,0.203,59121.0,59120.0,0.5179]
[1724171694389,0.201,59121.0,59120.0,0.5099]
[1724171694825,0.202,59121.0,59120.0,0.5099]
[1724171695017,0.201,59121.0,59120.0,0.5099]
[1724171695341,0.001,59121.0,59120.0,0.551581]
[1724171695492,0.001,59121.0,59120.0,0.7142]
[1724171695892,0.001,59121.0,59120.0,0.7282]
[1724171696107,0.001,59121.0,59120.0,0.7291031]
[1724171696312,0.002821,59121.0,59120.0,0.7371031]
[1724171698454,0.002821,59121.0,59120.0,0.74739025]
[1724171699262,0.002821,59121.0,59120.0,0.56609025]
[1724171700021,0.002821,59121.0,59120.0,0.5558031]
[1724171700454,0.190121,59121.0,59120.0,0.1229031]
[1724171701587,0.002821,59121.0,59120.0,0.1229031]
[1724171701978,0.002821,59121.0,59120.0,0.0229031]
[1724171702215,0.002821,59121.0,59120.0,0.1229031]
[1724171702737,0.002821,59121.0,59120.0,0.1798431]
[1724171702908,0.002821,59121.0,59120.0,1.1123431]
[1724171703122,0.002821,59121.0,59120.0,0.9207431]
[1724171703339,0.002821,59121.0,59120.0,0.1428431]
[1724171703340,0.001821,59121.0,59120.0,0.1428431]
[1724171703544,0.000821,59121.0,59120.0,0.1348431]
[1724171703763,0.000821,59121.0,59120.0,0.0488431]
[1724171703764,0.001821,59121.0,59120.0,0.0488431]
[1724171703964,0.002821,59121.0,59120.0,0.0568431]
[1724171704139,0.000821,59121.0,59120.0,0.0009031]
[1724171704521,0.000821,59121.0,59120.0,0.0229031]
[1724171704522,0.002821,59121.0,59120.0,0.0229031]
[1724171704725,0.0060496,59121.0,59120.0,0.0149031]
[1724171705123,0.0060496,59121.0,59120.0,0.0229031]
[1724171705124,0.383221,59121.0,59120.0,0.0229031]
[1724171705315,0.383221,59121.0,59120.0,0.0089031]
[1724171705993,0.578221,59121.0,59120.0,0.0089031]
[1724171706608,0.578221,59121.0,59120.0,0.0219031]
[1724171707011,0.578221,59121.0,59120.0,0.0009031]
[1724171707243,0.577221,59121.0,59120.0,0.0009031]
[1724171707453,0.61006016,59121.0,59120.0,0.0099031]
[1724171707658,0.61006016,59121.0,59120.0,0.0009031]
[1724171708271,0.577221,59121.0,59120.0,0.0009031]
[1724171708486,0.577221,59121.0,59109.0,0.0009031]
[1724171708487,0.6,59114.0,59109.0,0.0009031]
[1724171708701,1.22494464,59114.0,59109.0,0.0009031]
[1724171708905,1.27642956,59114.0,59109.0,0.0009031]
[1724171709110,1.30367202,59114.0,59109.0,0.0009031]
[1724171709530,0.5798,59110.0,59109.0,0.0009031]
[1724171709714,1.07896148,59110.0,59109.0,0.0009031]
[1724171709971,0.80828048,59110.0,59109.0,0.0009031]
[1724171710207,1.2,59093.0,59088.0,0.00567283]
[1724171710414,1.74272781,59093.0,59088.0,0.00567283]
[1724171710615,1.6181619,59093.0,59088.0,0.00567283]
[1724171710901,1.57104464,59093.0,59088.0,0.00567283]
[1724171711353,1.5382,59093.0,59088.0,0.00567283]
[1724171711553,1.2,59093.0,59088.0,0.00567283]
[1724171711762,1.201,59093.0,59088.0,0.00567283]
[1724171712845,1.2,59093.0,59088.0,0.00567283]
[1724171713056,0.2,59093.0,59088.0,0.00567283]
[1724171713258,0.201,59093.0,59092.0,0.379721]
[1724171713480,0.203,59093.0,59092.0,0.479721]
[1724171713689,0.202,59093.0,59092.0,0.479721]
[1724171714131,0.205,59093.0,59092.0,0.479721]
[1724171714304,0.201,59093.0,59092.0,0.479721]
[1724171714514,0.2,59093.0,59092.0,0.479721]
[1724171714719,0.201,59093.0,59092.0,0.488721]
[1724171714923,0.202,59093.0,59092.0,0.497721]
[1724171715132,0.201,59093.0,59092.0,0.488721]
[1724171715520,0.201,59093.0,59092.0,0.109821]
[1724171715660,0.201,59093.0,59092.0,0.009821]
[1724171716243,0.5781,59093.0,59092.0,0.009821]
[1724171716672,0.7638,59093.0,59092.0,0.009821]
[1724171716865,0.7628,59093.0,59092.0,0.000821]
[1724171716979,0.7648,59093.0,59092.0,0.020821]
[1724171717178,0.202,59093.0,59088.0,0.00567283]
[1724171717441,0.59333158,59092.0,59088.0,0.00567283]
[1724171718144,1.0248,59089.0,59088.0,0.00567283]
[1724171720195,1.0268,59089.0,59088.0,0.00567283]
[1724171720449,1.0298,59089.0,59088.0,0.00567283]
[1724171720944,1.0268,59089.0,59088.0,0.00567283]
[1724171721171,1.0298,59089.0,59088.0,0.00567283]
[1724171721367,1.0248,59089.0,59088.0,0.00567283]
[1724171721544,1.0268,59089.0,59088.0,0.00567283]
[1724171721773,1.0298,59089.0,59088.0,0.00567283]
[1724171721975,1.3652,59089.0,59088.0,0.00567283]
[1724171723146,1.3632,59089.0,59088.0,0.00567283]
[1724171723349,1.501588,59089.0,59088.0,0.00567283]
[1724171723553,1.503588,59089.0,59088.0,0.00567283]
[1724171723960,1.501588,59089.0,59088.0,0.00567283]
[1724171724119,1.329388,59089.0,59088.0,0.00567283]
[1724171724320,1.432965,59089.0,59088.0,0.00567283]
[1724171724524,1.435965,59089.0,59088.0,0.00567283]
[1724171724719,1.432965,59089.0,59088.0,0.00567283]
[1724171725197,1.435965,59089.0,59088.0,0.00567283]
[1724171725641,1.707742,59089.0,59088.0,0.00567283]
[1724171725835,1.709742,59089.0,59088.0,0.00567283]
[1724171726043,3.565419,59089.0,59088.0,0.00567283]
[1724171726194,3.838419,59089.0,59088.0,0.00567283]
[1724171726394,3.667419,59089.0,59088.0,0.00567283]
[1724171726603,3.54864483,59089.0,59088.0,0.00567283]
[1724171726853,3.329019,59089.0,59088.0,0.00567283]
[1724171727081,3.326019,59089.0,59088.0,0.00567283]
[1724171727237,1.917012,59083.0,59074.0,0.000821]
[1724171727448,2.187817,59083.0,59074.0,0.000821]
[1724171727673,2.189817,59083.0,59074.0,0.000821]
[1724171728390,2.799022,59083.0,59074.0,0.000821]
[1724171728550,2.899022,59083.0,59074.0,0.000821]
[1724171728751,2.902022,59083.0,59074.0,0.000821]
[1724171728953,2.61404783,59083.0,59074.0,0.000821]
[1724171729112,2.563622,59083.0,59082.0,0.00101466]
[1724171729317,2.162947,59075.0,59074.0,0.000821]
[1724171729561,5.038447,59075.0,59074.0,0.000821]
[1724171730393,5.040447,59075.0,59074.0,0.000821]
[1724171730831,5.311289,59075.0,59074.0,0.000821]
[1724171731126,5.409289,59075.0,59074.0,0.000821]
[1724171731687,5.41867793,59075.0,59074.0,0.000821]
[1724171731883,5.41567793,59075.0,59074.0,0.000821]
[1724171732085,5.41867793,59075.0,59074.0,0.000821]
[1724171732511,5.07367793,59075.0,59074.0,0.000821]
[1724171733079,5.07267793,59075.0,59074.0,0.000821]
[1724171733885,5.07467793,59075.0,59074.0,0.000821]
[1724171737375,5.41307793,59075.0,59074.0,0.000821]
[1724171737653,5.42067793,59075.0,59074.0,0.000821]
[1724171738790,5.4535848,59075.0,59074.0,0.000821]
[1724171739215,5.42067793,59075.0,59074.0,0.000821]
[1724171739415,5.2582763,59075.0,59074.0,0.000821]
[1724171739616,4.8144343,59075.0,59074.0,0.000821]
[1724171739790,4.94039393,59075.0,59074.0,0.000821]
[1724171740027,5.21323593,59075.0,59074.0,0.000821]
[1724171740239,5.21523593,59075.0,59074.0,0.000821]
[1724171740668,5.21323593,59075.0,59074.0,0.000821]
[1724171740876,5.21123593,59075.0,59074.0,0.000821]
[1724171741298,5.21423593,59075.0,59074.0,0.000821]
[1724171741489,5.21123593,59075.0,59074.0,0.000821]
[1724171741719,5.21123593,59075.0,59074.0,0.003421]
[1724171741906,5.21423593,59075.0,59074.0,0.003421]
[1724171742347,5.21323593,59075.0,59074.0,0.003421]
[1724171742607,5.21423593,59075.0,59074.0,0.003421]
[1724171742801,5.03923593,59075.0,59074.0,0.003421]
[1724171743002,4.70083593,59075.0,59074.0,0.003421]
[1724171743202,4.73574151,59075.0,59074.0,0.003421]
[1724171743743,3.60905751,59075.0,59074.0,0.003421]
[1724171743946,3.47830993,59075.0,59074.0,0.003421]
[1724171744159,3.57915193,59075.0,59074.0,0.003421]
[1724171744780,3.85199393,59075.0,59074.0,0.003421]
[1724171745038,4.29889382,59075.0,59074.0,0.003421]
[1724171745233,4.29589382,59075.0,59074.0,0.003421]
[1724171745435,4.29689382,59075.0,59074.0,0.003421]
[1724171745660,4.29871747,59075.0,59074.0,0.003421]
[1724171745861,4.29671747,59075.0,59074.0,0.003421]
[1724171746303,4.29771747,59075.0,59074.0,0.003421]
[1724171747080,4.66855947,59075.0,59074.0,0.003421]
[1724171747288,4.86985947,59075.0,59074.0,0.003421]
[1724171747484,5.20825947,59075.0,59074.0,0.003421]
[1724171747731,5.20825947,59075.0,59074.0,0.00207346]
[1724171747943,5.21565721,59075.0,59074.0,0.00207346]
[1724171748291,0.005,59074.0,59073.0,0.00431447]
[1724171748506,0.47216,59071.0,59070.0,5.012e-05]
[1724171748710,1.70704842,59071.0,59070.0,5.012e-05]
[1724171748909,2.7429389,59071.0,59070.0,5.012e-05]
[1724171749129,2.27108652,59071.0,59070.0,5.012e-05]
[1724171749666,2.194422,59064.0,59041.0,0.938631]
[1724171749865,6.41430302,59064.0,59041.0,0.938631]
[1724171750066,6.68519502,59064.0,59041.0,0.938631]
[1724171750274,6.5844367,59064.0,59041.0,0.938631]
[1724171750708,7.8694367,59064.0,59041.0,0.541431]
[1724171750865,1.420377,59061.0,59041.0,0.541431]
[1724171751073,4.20815625,59061.0,59041.0,0.541431]
[1724171751563,4.20815625,59061.0,59041.0,0.938631]
[1724171751765,4.21863372,59061.0,59041.0,0.938631]
[1724171751969,3.92253415,59061.0,59041.0,0.938631]
[1724171752104,3.8973309,59061.0,59041.0,0.938631]
[1724171752315,4.19295853,59061.0,59041.0,0.938631]
[1724171752728,4.24435196,59061.0,59041.0,0.938631]
[1724171753133,4.49605253,59061.0,59052.0,0.3972]
[1724171753338,4.54646078,59061.0,59052.0,0.3972]
[1724171753543,4.54946078,59061.0,59052.0,0.3972]
[1724171753700,4.13546078,59061.0,59052.0,0.3972]
[1724171753895,4.84653415,59061.0,59041.0,0.541431]
[1724171754143,4.87172772,59061.0,59041.0,0.938631]
[1724171754344,4.77095853,59061.0,59041.0,0.938631]
[1724171754547,4.77395853,59061.0,59041.0,0.938631]
[1724171754722,4.87481649,59061.0,59041.0,0.938631]
[1724171754922,4.33000449,59061.0,59041.0,0.938631]
[1724171755178,3.82178753,59061.0,59041.0,0.938631]
[1724171755514,3.4465439,59061.0,59052.0,0.4151]
[1724171755692,3.34883626,59061.0,59052.0,0.4151]
[1724171755891,3.30339871,59061.0,59052.0,0.4151]
[1724171756046,3.29939871,59061.0,59052.0,0.4151]
[1724171756252,3.29639871,59061.0,59052.0,0.4151]
[1724171756703,3.29539871,59061.0,59052.0,0.4151]
[1724171756997,3.29639871,59061.0,59052.0,0.4151]
[1724171757214,3.30039871,59061.0,59052.0,0.4151]
[1724171757499,4.22015771,59061.0,59047.0,0.3891]
[1724171757696,4.2928147,59061.0,59047.0,0.3891]
[1724171757912,4.48806371,59061.0,59044.0,0.3891]
[1724171758155,4.48806371,59061.0,59041.0,0.541431]
[1724171758156,4.78496971,59061.0,59041.0,0.541431]
[1724171758369,4.78396971,59061.0,59060.0,0.00459876]
[1724171758575,5.23136971,59061.0,59060.0,0.00459876]
[1724171758705,5.38250554,59061.0,59060.0,0.00459876]
[1724171759097,5.38350554,59061.0,59060.0,0.00459876]
[1724171759306,5.38050554,59061.0,59060.0,0.00459876]
[1724171759509,5.24705384,59061.0,59060.0,0.00459876]
[1724171759713,4.97614784,59061.0,59060.0,0.00459876]
[1724171759914,4.09007771,59061.0,59060.0,0.00459876]
[1724171760123,3.96393584,59061.0,59060.0,0.00459876]
[1724171760405,1.85693584,59061.0,59060.0,0.00459876]
[1724171760536,1.43727777,59061.0,59060.0,0.00459876]
[1724171760731,1.44553584,59061.0,59060.0,0.00459876]
[1724171760935,1.99034784,59061.0,59060.0,0.00459876]
[1724171761386,1.98734784,59061.0,59060.0,0.00459876]
[1724171761589,2.28611707,59061.0,59060.0,0.00459876]
[1724171761906,0.63,59045.0,59044.0,0.39312976]
[1724171762102,0.67526328,59045.0,59044.0,0.39312976]
[1724171763973,0.67626328,59045.0,59044.0,0.39312976]
[1724171764201,0.67626328,59045.0,59041.0,0.541431]
[1724171764408,0.03713469,59044.0,59041.0,0.541431]